bitfinex-derivatives/quotes_ETHF0:USTF0_20240901
["timestamp","ask_amount","ask_price","bid_price","bid_amount"]
[1725175676832,0.00304417,2476.3,2476.2,1.11012502]
[1725175677438,0.00304417,2476.3,2476.2,1.72900748]
[1725175679851,0.00304417,2476.3,2476.2,0.7204]
[1725175680144,0.00304417,2476.3,2476.2,1.72885708]
[1725175682138,0.00304417,2476.3,2476.2,0.7204]
[1725175682440,0.00304417,2476.3,2476.2,1.72885812]
[1725175683743,0.00304417,2476.3,2476.2,4.99180569]
[1725175685844,0.00304417,2476.3,2476.2,3.98334757]
[1725175686043,0.00304417,2476.3,2476.2,4.99193815]
[1725175686543,0.00304417,2476.3,2476.2,3.93425718]
[1725175686738,0.00304417,2476.3,2476.2,4.99193815]
[1725175687049,0.00304417,2476.3,2476.2,4.99205858]
[1725175688744,0.00304417,2476.3,2476.2,3.983468]
[1725175688951,0.00304417,2476.3,2476.2,4.9921308]
[1725175690553,0.00304417,2476.3,2476.2,3.1313728]
[1725175690753,0.00304417,2476.3,2476.2,3.5026728]
[1725175690948,0.00304417,2476.3,2476.2,4.30571953]
[1725175691148,0.00304417,2476.3,2476.2,5.3634005]
[1725175691353,0.00304417,2476.3,2476.2,3.5026728]
[1725175697152,0.00304417,2476.3,2476.2,7.5410728]
[1725175697859,2.64596922,2476.6,2476.4,0.24229]
[1725175698159,2.64596922,2476.6,2476.5,0.38974052]
[1725175698357,2.64596922,2476.6,2476.5,0.75484052]
[1725175698658,2.64596922,2476.6,2476.5,0.38974052]
[1725175701058,2.64596922,2476.7,2476.5,0.38974052]
[1725175701256,2.64596922,2476.7,2476.4,0.24229]
[1725175701463,2.64596922,2476.7,2476.5,0.38972223]
[1725175701656,2.64596922,2476.7,2476.3,0.6074]
[1725175701860,2.64596922,2476.7,2476.4,0.38973376]
[1725175702058,0.7301,2476.6,2476.5,0.38973376]
[1725175702355,0.7301,2476.6,2476.5,0.38974489]
[1725175702757,0.7301,2476.6,2476.5,0.38972788]
[1725175703061,3.37606922,2476.6,2476.5,0.38972788]
[1725175703259,0.7301,2476.6,2476.5,0.38972788]
[1725175704662,3.37606922,2476.6,2476.5,0.38972788]
[1725175704961,0.7301,2476.6,2476.5,0.38972788]
[1725175705757,0.7301,2476.6,2476.5,0.38978566]
[1725175709062,0.7301,2476.6,2476.5,0.38973602]
[1725175711459,0.7301,2476.6,2476.5,1.00864648]
[1725175711659,0.7301,2476.6,2476.5,0.38973602]
[1725175712361,0.7301,2476.6,2476.5,0.38973823]
[1725175713061,3.37606922,2476.6,2476.5,0.38973823]
[1725175713262,0.7301,2476.6,2476.5,0.38973823]
[1725175713456,7.65593922,2476.6,2476.5,0.38973823]
[1725175713658,0.24233,2476.0,2475.9,0.80343676]
[1725175713856,0.24233,2476.0,2475.9,1.00906727]
[1725175714058,4.28153,2476.0,2475.9,0.38987822]
[1725175714262,5.02763,2476.0,2475.9,0.38987822]
[1725175715264,7.6743938,2476.0,2475.9,0.38987822]
[1725175715464,5.02763,2476.0,2475.9,0.38987822]
[1725175715672,7.6743938,2476.0,2475.9,0.38987822]
[1725175716069,11.86671703,2476.0,2475.6,1.16]
[1725175716274,2.8891138,2475.9,2475.7,0.39007543]
[1725175716571,0.24235,2475.9,2475.8,0.39007543]
[1725175716973,4.28155,2475.9,2475.8,0.39007543]
[1725175717169,4.28155,2475.9,2475.6,1.16]
[1725175717472,0.24235,2475.9,2475.7,0.39009837]
[1725175717673,0.24235,2475.9,2475.6,1.16]
[1725175717971,0.3827,2475.8,2475.7,0.39011253]
[1725175719065,0.3827,2475.8,2475.7,0.39012111]
[1725175719264,0.3827,2475.8,2475.5,1.16]
[1725175719572,0.3827,2475.8,2475.6,0.39011349]
[1725175719870,0.3827,2475.8,2475.5,1.16]
[1725175720074,0.3827,2475.8,2475.6,0.39010736]
[1725175720264,0.3827,2475.8,2475.5,1.16]
[1725175720465,0.3827,2475.8,2475.6,0.39011492]
[1725175720672,0.3827,2475.8,2475.5,1.16]
[1725175720972,0.3827,2475.8,2475.6,0.39010995]
[1725175721270,0.24236,2475.7,2475.5,1.16]
[1725175721469,0.3822,2475.6,2475.5,1.16]
[1725175721774,0.7712,2475.6,2475.5,1.55012992]
[1725175726274,0.7712,2475.6,2475.5,1.16]
[1725175727878,0.389,2475.6,2475.5,1.16]
[1725175732174,0.389,2475.6,2475.4,0.39013035]
[1725175732376,0.389,2475.6,2475.4,1.16]
[1725175733284,0.389,2475.6,2475.4,1.55018359]
[1725175734280,0.389,2475.6,2475.5,0.3807]
[1725175741296,4.67057,2475.6,2475.4,3.2078]
[1725175741591,0.63137,2475.6,2475.4,3.2078]
[1725175742685,0.389,2475.6,2475.4,3.2078]
[1725175742990,0.389,2475.6,2475.4,4.3678]
[1725175745989,0.389,2475.6,2475.4,1.16]
[1725175746189,0.389,2475.6,2475.4,4.3678]
[1725175747085,0.389,2475.6,2475.4,1.16]
[1725175747291,0.389,2475.6,2475.4,4.3678]
[1725175747984,0.389,2475.6,2475.4,1.16]
[1725175748587,0.389,2475.6,2475.4,4.3678]
[1725175749786,0.389,2475.6,2475.4,1.16]
[1725175750091,0.389,2475.6,2475.4,4.3678]
[1725175752081,0.63137,2475.6,2475.4,4.3678]
[1725175752285,0.63137,2475.6,2475.4,3.2078]
[1725175754795,0.63137,2475.6,2475.3,0.7656]
[1725175754991,0.63137,2475.6,2475.4,0.39013213]
[1725175755197,0.63137,2475.6,2475.5,0.39012657]
[1725175756291,0.389,2475.6,2475.5,0.39012657]
[1725175758289,0.389,2475.6,2475.5,1.00973404]
[1725175759405,3.0357638,2475.6,2475.5,1.00973404]
[1725175760301,3.0357638,2475.6,2475.5,1.8138767]
[1725175761096,0.389,2475.6,2475.5,2.87155767]
[1725175761302,3.0357638,2475.6,2475.5,2.87155767]
[1725175766893,3.2781338,2475.6,2475.5,1.8138767]
[1725175767199,3.2781338,2475.6,2475.5,2.87155767]
[1725175767795,3.0357638,2475.6,2475.5,2.87155767]
[1725175767995,3.0357638,2475.6,2475.5,1.8138767]
[1725175768298,3.0357638,2475.6,2475.5,2.87155767]
[1725175768498,3.0357638,2475.6,2475.5,1.8138767]
[1725175768701,3.0357638,2475.6,2475.5,2.87155767]
[1725175769001,3.0357638,2475.6,2475.5,2.87176146]
[1725175772691,3.0357638,2475.6,2475.5,1.86182363]
[1725175772894,3.0357638,2475.6,2475.5,2.87171502]
[1725175773503,3.0357638,2475.6,2475.5,2.87173092]
[1725175775693,3.0357638,2475.6,2475.5,2.87183994]
[1725175778905,3.0357638,2475.6,2475.5,1.86182363]
[1725175779213,3.0357638,2475.6,2475.5,2.87184731]
[1725175781212,3.4121638,2475.6,2475.5,2.87184731]
[1725175788318,3.6545338,2475.6,2475.5,2.87184731]
[1725175788921,3.4121638,2475.6,2475.5,2.87184731]
[1725175790222,3.6545338,2475.6,2475.5,2.87184731]
[1725175792211,3.6545338,2475.6,2475.5,1.86182363]
[1725175792413,1.00777,2475.6,2475.5,1.86182363]
[1725175792614,1.00777,2475.6,2475.5,2.87174629]
[1725175792915,3.65885971,2475.6,2475.5,2.87174629]
[1725175797020,3.65885971,2475.6,2475.5,1.86182363]
[1725175797215,3.65885971,2475.6,2475.5,2.87176503]
[1725175798423,3.41648971,2475.6,2475.5,2.87176503]
[1725175798618,2.65108971,2475.6,2475.5,3.22986503]
[1725175799326,2.65108971,2475.6,2475.5,3.5840172]
[1725175799831,2.65108971,2475.6,2475.5,2.52633623]
[1725175800533,2.65108971,2475.6,2475.5,3.58657908]
[1725175800724,2.65108971,2475.6,2475.5,2.52633623]
[1725175800921,2.65108971,2475.6,2475.5,4.11285769]
[1725175801122,2.65108971,2475.6,2475.5,2.52633623]
[1725175801422,2.65108971,2475.6,2475.5,3.58659386]
[1725175801824,2.65108971,2475.6,2475.5,2.57670029]
[1725175802031,2.65108971,2475.6,2475.5,3.58683512]
[1725175802415,2.65108971,2475.6,2475.5,3.58684495]
[1725175802929,2.65108971,2475.7,2475.5,4.11310878]
[1725175803126,2.65108971,2475.7,2475.6,2.07032803]
[1725175803523,0.24235,2475.8,2475.6,1.81428732]
[1725175803728,0.24235,2475.8,2475.7,1.01014466]
[1725175804726,3.78933179,2475.9,2475.7,1.01014466]
[1725175804934,0.3688,2475.9,2475.8,1.01014466]
[1725175805125,0.3688,2475.9,2475.8,1.11857164]
[1725175805322,0.3688,2475.9,2475.8,1.73822691]
[1725175805523,3.0187356,2475.9,2475.8,1.73822691]
[1725175805817,0.3688,2475.9,2475.8,1.73822691]
[1725175806224,3.01868463,2475.9,2475.8,1.73822691]
[1725175806428,3.01868463,2475.9,2475.8,2.09102691]
[1725175811829,2.64988463,2475.9,2475.8,3.25102691]
[1725175812029,7.34118179,2476.2,2475.9,0.24234]
[1725175812030,2.64988463,2476.1,2475.9,0.24234]
[1725175812235,4.163,2476.2,2476.0,1.00982691]
[1725175812236,2.64988463,2476.2,2476.0,1.00982691]
[1725175812429,2.64988463,2476.2,2476.1,1.38952209]
[1725175813230,2.64988463,2476.2,2476.1,0.76997164]
[1725175814926,2.89219463,2476.2,2476.1,0.39017164]
[1725175815232,2.89219463,2476.2,2476.1,0.3900617]
[1725175816639,2.64988463,2476.2,2476.1,0.3900617]
[1725175816933,3.24429463,2476.3,2476.1,0.3900617]
[1725175817137,3.24429463,2476.3,2475.9,0.61464]
[1725175817435,3.24429463,2476.3,2476.0,1.00956012]
[1725175817635,3.24429463,2476.3,2476.1,0.39006872]
[1725175817827,3.24429463,2476.3,2475.9,0.61464]
[1725175818029,3.24429463,2476.3,2476.0,1.00957748]
[1725175818229,3.24429463,2476.3,2476.1,0.39007543]
[1725175818431,3.24429463,2476.3,2475.9,0.3723]
[1725175818639,3.24429463,2476.3,2476.0,0.3900744]
[1725175818829,3.24429463,2476.3,2476.1,0.3900744]
[1725175819029,3.24429463,2476.3,2475.9,0.61464]
[1725175819230,3.24429463,2476.3,2476.0,0.39009838]
[1725175819431,3.24429463,2476.3,2476.1,0.39009838]
[1725175819632,3.24429463,2476.3,2475.9,0.3723]
[1725175819829,3.24429463,2476.3,2476.0,0.39010332]
[1725175820032,3.24429463,2476.3,2476.1,0.39010332]
[1725175820336,3.24429463,2476.3,2475.9,0.3723]
[1725175820537,3.24429463,2476.3,2476.0,0.39010533]
[1725175820835,3.24429463,2476.3,2476.1,0.39010533]
[1725175821037,3.24429463,2476.3,2475.9,0.3723]
[1725175821234,3.24429463,2476.3,2476.0,0.39010267]
[1725175821430,3.24429463,2476.3,2476.1,0.39010267]
[1725175821739,0.24231,2476.2,2475.9,0.3723]
[1725175821938,0.3604,2476.1,2476.0,0.39010296]
[1725175825938,0.3604,2476.1,2475.9,0.3723]
[1725175826139,0.3604,2476.1,2476.0,0.39013594]
[1725175828549,0.3521,2476.3,2476.0,5.58853594]
[1725175828839,0.3521,2476.3,2476.1,1.38939491]
[1725175829142,0.3521,2476.3,2476.2,0.75623594]
[1725175829640,0.3521,2476.3,2476.2,0.3661]
[1725175829840,0.3521,2476.3,2476.2,0.75622489]
[1725175831962,0.383,2476.5,2476.2,5.65642498]
[1725175832145,0.3818,2476.5,2476.3,5.19942421]
[1725175832445,0.3818,2476.5,2476.4,0.74302489]
[1725175832745,0.3818,2476.5,2476.4,5.16242489]
[1725175833136,0.3818,2476.5,2476.4,5.40460233]
[1725175833350,0.3818,2476.7,2476.4,6.02392449]
[1725175833535,0.3818,2476.7,2476.5,1.55001233]
[1725175833731,0.3818,2476.7,2476.6,0.365]
[1725175834543,0.3818,2476.7,2476.6,0.75493608]
[1725175835040,0.3818,2476.7,2476.6,1.91493608]
[1725175835247,0.00605596,2476.8,2476.6,15.16024433]
[1725175835445,1.124,2477.3,2476.8,0.24225]
[1725175835644,1.124,2477.3,2477.1,1.16]
[1725175836233,0.7384,2477.3,2477.1,1.16]
[1725175836446,0.7384,2477.3,2477.1,1.5239]
[1725175843753,0.7384,2477.3,2477.1,0.3639]
[1725175843948,0.7384,2477.3,2477.2,1.16]
[1725175847445,0.3601,2477.3,2477.2,4.3678]
[1725175849857,0.3601,2477.3,2477.2,1.16]
[1725175852952,0.3601,2477.3,2477.1,0.3639]
[1725175853154,0.3601,2477.3,2477.0,3.2078]
[1725175853453,0.3601,2477.3,2476.7,0.24226]
[1725175853454,0.24223,2477.1,2476.9,1.16]
[1725175853654,0.3852,2477.0,2476.9,1.16]
[1725175853857,0.7704,2477.0,2476.9,1.16]
[1725175855556,1.01264,2477.0,2476.9,1.16]
[1725175855856,4.808,2477.0,2476.7,4.3678]
[1725175856056,0.7704,2477.0,2476.7,4.3678]
[1725175856462,0.24225,2476.9,2476.7,4.3678]
[1725175856767,0.63336,2476.8,2476.7,1.16]
[1725175857060,0.3911,2476.8,2476.7,1.16]
[1725175858251,4.67096,2476.8,2476.7,1.16]
[1725175858455,4.67096,2476.8,2476.5,1.16605596]
[1725175858456,0.24227,2476.7,2476.5,1.16605596]
[1725175858652,0.3735,2476.6,2476.5,1.16605596]
[1725175858856,0.745,2476.6,2476.5,1.16605596]
[1725175859366,0.98727,2476.6,2476.5,1.16605596]
[1725175859655,5.02487,2476.6,2476.5,0.00605596]
[1725175860364,0.745,2476.6,2476.5,1.16605596]
[1725175860662,0.3911,2476.8,2476.5,5.20365596]
[1725175860859,0.3911,2476.8,2476.6,1.16]
[1725175863360,0.7541,2476.8,2476.6,1.16]
[1725175863560,0.99636,2476.8,2476.6,1.16]
[1725175863965,0.7541,2476.8,2476.6,1.16]
[1725175868566,0.99636,2476.8,2476.6,1.16]
[1725175869368,0.99636,2476.8,2476.5,1.10685596]
[1725175869369,0.7541,2476.8,2476.5,1.16605596]
[1725175869669,0.24227,2476.6,2476.5,0.00605596]
[1725175870163,8.50690111,2476.6,2476.5,0.00605596]
[1725175871266,8.26463111,2476.6,2476.5,0.00605596]
[1725175871571,0.24227,2476.7,2476.5,0.00605596]
[1725175871763,0.24227,2476.7,2476.5,0.77165596]
[1725175872464,0.7541,2476.8,2476.5,0.77165596]
[1725175872465,0.7541,2476.8,2476.5,0.38405596]
[1725175872762,0.99636,2476.8,2476.5,0.38405596]
[1725175874069,0.24227,2476.7,2476.5,0.38405596]
[1725175874364,0.24227,2476.7,2476.5,0.00605596]
[1725175875962,0.99636,2476.8,2476.6,1.16]
[1725175876158,0.63336,2476.8,2476.6,1.16]
[1725175876766,0.63336,2476.8,2476.5,0.00605596]
[1725175880567,0.24226,2476.8,2476.5,0.00605596]
[1725175880768,0.98875,2476.9,2476.6,1.16]
[1725175884663,4.36966699,2476.8,2476.6,1.16]
[1725175886061,4.36966699,2476.8,2476.5,0.00605596]
[1725175886374,4.36966699,2476.8,2476.5,1.16605596]
[1725175888868,0.98875,2476.9,2476.5,1.16605596]
[1725175890373,0.24226,2476.8,2476.5,1.16605596]
[1725175890970,0.98875,2476.9,2476.5,1.16605596]
[1725175891371,0.24226,2476.8,2476.5,1.16605596]
[1725175891579,0.24226,2476.8,2476.5,0.00605596]
[1725175891580,0.24227,2476.6,2476.5,0.00605596]
[1725175892073,4.0376,2476.6,2476.5,0.00605596]
[1725175892582,5.04147,2476.6,2476.5,0.00605596]
[1725175892781,4.7992,2476.6,2476.5,1.16605596]
[1725175893077,0.3901,2476.6,2476.5,1.55624546]
[1725175893575,0.375,2476.9,2476.5,1.55624546]
[1725175893771,0.7651,2476.9,2476.6,1.9231895]
[1725175893972,0.7651,2476.9,2476.7,0.3819]
[1725175896079,0.7651,2476.9,2476.8,0.39016111]
[1725175898475,0.7651,2476.9,2476.7,0.3819]
[1725175898676,0.7651,2476.9,2476.8,0.39016001]
[1725175899281,3.41498463,2476.9,2476.8,0.39016001]
[1725175899786,3.65723463,2476.9,2476.8,0.39016001]
[1725175900182,3.41498463,2476.9,2476.8,0.39016001]
[1725175900387,0.7651,2476.9,2476.8,0.39016001]
[1725175901774,0.7651,2476.9,2476.6,1.16]
[1725175901978,0.7651,2476.9,2476.7,1.00981225]
[1725175901979,2.64674353,2476.8,2476.7,1.00981225]
[1725175904188,6.92660353,2476.8,2476.7,1.00981225]
[1725175904590,8.53187468,2476.8,2476.7,0.39016664]
[1725175905195,0.24227,2476.7,2476.5,0.00605596]
[1725175905385,3.00680309,2476.6,2476.5,0.00605596]
[1725175905582,7.70456348,2476.6,2476.5,1.01597613]
[1725175905798,11.74216348,2476.6,2476.5,1.01597613]
[1725175906295,7.70456348,2476.6,2476.5,1.01597613]
[1725175907090,7.94683348,2476.6,2476.5,1.01597613]
[1725175907705,7.70456348,2476.6,2476.5,1.01597613]
[1725175911604,7.70456348,2476.6,2476.5,0.00605596]
[1725175911796,7.70456348,2476.6,2476.5,1.01597751]
[1725175915104,7.70456348,2476.6,2476.5,0.39625929]
[1725175915305,7.70456348,2476.6,2476.5,1.01596376]
[1725175915499,7.70456348,2476.6,2476.5,1.01596904]
[1725175917300,2.64670309,2476.7,2476.5,2.17596904]
[1725175917501,3.02970309,2476.8,2476.6,1.36241308]
[1725175917708,3.02970309,2476.8,2476.7,1.00987422]
[1725175917907,7.30172973,2476.8,2476.7,1.00987422]
[1725175918205,8.69262664,2476.8,2476.7,1.00987422]
[1725175918503,8.93488664,2476.8,2476.7,1.00987422]
[1725175919305,8.93488664,2476.8,2476.7,0.39020536]
[1725175921010,8.93488664,2476.8,2476.5,0.00605596]
[1725175921211,8.93488664,2476.8,2476.6,1.00989568]
[1725175921212,4.89728664,2476.8,2476.6,1.00989568]
[1725175921413,4.89728664,2476.8,2476.7,0.39019863]
[1725175921913,8.93488664,2476.8,2476.7,0.39019863]
[1725175925010,12.14268664,2476.8,2476.7,0.39019863]
[1725175926214,8.93488664,2476.8,2476.7,0.39019863]
[1725175927311,0.24227,2476.6,2476.5,0.00605596]
[1725175927612,2.8892342,2476.6,2476.5,1.01598697]
[1725175928908,2.6469642,2476.7,2476.5,6.21358697]
[1725175929109,2.6469642,2476.7,2476.6,1.00993101]
[1725175929303,2.6469642,2476.7,2476.6,1.39043101]
[1725175933809,0.61725,2476.9,2476.6,1.39043101]
[1725175933810,2.6469642,2476.8,2476.6,1.39043101]
[1725175934014,3.2642142,2476.9,2476.7,1.74052855]
[1725175934313,3.0219642,2476.9,2476.8,1.00982855]
[1725175936519,2.6469642,2476.9,2476.8,1.00982855]
[1725175936711,3.0065642,2476.9,2476.8,1.00982855]
[1725175937217,3.0065642,2476.9,2476.8,1.00978464]
[1725175940420,3.0065642,2476.9,2476.8,1.00978702]
[1725175941017,2.6469642,2476.9,2476.8,1.00978702]
[1725175941212,0.3546,2476.9,2476.7,1.8907]
[1725175941411,0.3546,2476.9,2476.8,1.00976454]
[1725175942822,2.6469642,2477.0,2476.8,2.16976454]
[1725175943016,5.8547642,2477.2,2476.9,5.04736454]
[1725175943213,5.8547642,2477.2,2477.0,2.54396454]
[1725175943418,5.8547642,2477.2,2477.1,0.77684823]
[1725175943728,5.8547642,2477.2,2477.1,1.39640347]
[1725175944018,5.8547642,2477.2,2477.1,5.43320347]
[1725175944217,5.8547642,2477.2,2477.1,4.81362474]
[1725175944422,3.2078,2477.2,2477.1,5.05585474]
[1725175944623,3.2078,2477.2,2477.1,1.75769427]
[1725175944821,3.2078,2477.2,2477.1,5.79449427]
[1725175947127,0.37475596,2477.4,2477.1,5.79406606]
[1725175947430,0.37475596,2477.4,2477.2,0.38995579]
[1725175947632,0.37475596,2477.4,2477.3,0.38995579]
[1725175948237,0.37475596,2477.4,2477.1,0.748]
[1725175948416,0.37475596,2477.4,2477.2,0.3899059]
[1725175948729,0.37475596,2477.4,2477.1,0.748]
[1725175948932,0.37475596,2477.4,2477.2,0.38991261]
[1725175949128,0.37475596,2477.4,2477.2,1.16]
[1725175949321,0.37475596,2477.4,2477.3,0.77874465]
[1725175950032,0.00605596,2477.4,2477.3,0.77874465]
[1725175950323,0.00605596,2477.4,2477.3,0.3889]
[1725175950529,0.00605596,2477.4,2477.3,0.77872985]
[1725175951719,0.00605596,2477.4,2477.3,11.43457942]
[1725175951926,0.00605596,2477.4,2477.3,11.67678942]
[1725175953131,0.00605596,2477.4,2477.3,5.67678942]
[1725175953327,0.00605596,2477.4,2477.3,5.43457942]
[1725175953941,0.00605596,2477.4,2477.3,4.81552985]
[1725175954127,0.00605596,2477.4,2477.3,4.4257]
[1725175954327,0.00605596,2477.4,2477.3,4.81545047]
[1725175955129,0.00605596,2477.4,2477.3,5.05766047]
[1725175955829,0.3843,2477.7,2477.3,5.05766047]
[1725175956036,0.3843,2477.7,2477.4,1.54975047]
[1725175956241,0.3843,2477.7,2477.5,0.7185]
[1725175956736,0.3668,2478.0,2477.6,1.5365]
[1725175956927,0.74765596,2478.0,2477.8,1.16]
[1725175957624,0.74765596,2478.0,2477.6,0.82452361]
[1725175957625,0.74765596,2478.0,2477.7,1.16]
[1725175960628,0.74765596,2478.0,2477.7,4.3678]
[1725175962636,0.74765596,2478.0,2477.8,1.16]
[1725175962933,0.74765596,2478.0,2477.9,0.373]
[1725175963140,0.00605596,2478.0,2477.9,0.7333]
[1725175963443,0.00605596,2478.0,2477.9,5.36315]
[1725175971155,0.00605596,2478.0,2477.9,8.57095]
[1725175972054,0.00605596,2478.0,2477.9,5.36315]
[1725175972258,0.3577,2478.3,2478.0,0.24213]
[1725175972456,0.3577,2478.3,2478.2,1.16]
[1725175972851,0.3577,2478.3,2478.2,1.5432]
[1725175974062,0.3577,2478.3,2478.0,0.00605596]
[1725175974260,0.3577,2478.3,2478.0,1.16605596]
[1725175976460,0.24612728,2478.5,2478.2,4.3678]
[1725175976770,0.3567,2478.4,2478.2,4.3678]
[1725175979158,0.3567,2478.4,2478.2,1.16]
[1725175980664,0.3567,2478.4,2478.3,1.16]
[1725175989167,0.5988,2478.4,2478.2,4.3678]
[1725175989570,0.24211,2478.3,2478.2,3.2078]
[1725175989875,0.24213,2478.1,2478.0,0.00605596]
[1725175990171,0.24216,2477.8,2477.5,4.3678]
[1725175991267,0.24216,2477.8,2477.5,4.75669343]
[1725175991462,0.24216,2477.8,2477.5,4.3678]
[1725175992069,0.24218,2477.6,2477.4,0.00605596]
[1725175992269,0.7726,2477.5,2477.4,0.00605596]
[1725175992472,1.01479,2477.5,2477.4,0.00605596]
[1725175993567,0.7726,2477.5,2477.4,0.00605596]
[1725175999677,0.7726,2477.5,2477.4,1.16605596]
[1725176000382,0.3839,2477.5,2477.4,1.16605596]
[1725176005081,0.24215,2477.9,2477.4,5.20285596]
[1725176005278,0.3725,2477.8,2477.4,1.16605596]
[1725176006980,0.3725,2477.8,2477.4,1.40824596]
[1725176012189,0.3725,2477.8,2477.4,1.91306246]
[1725176012793,0.3725,2477.8,2477.4,1.67087246]
[1725176016683,0.3725,2477.8,2477.4,1.16605596]
[1725176017294,0.3725,2477.8,2477.4,0.00605596]
[1725176017482,0.24217,2477.7,2477.4,0.00605596]
[1725176017686,0.7345,2477.6,2477.4,0.00605596]
[1725176018400,0.97668,2477.6,2477.4,0.00605596]
[1725176018689,0.7345,2477.6,2477.4,0.00605596]
[1725176021188,0.7345,2477.6,2477.4,3.21385596]
[1725176021590,0.7345,2477.6,2477.4,0.00605596]
[1725176021797,0.7345,2477.6,2477.4,3.21385596]
[1725176023706,0.7345,2477.6,2477.4,0.00605596]
[1725176024000,0.7345,2477.6,2477.4,3.21385596]
[1725176024687,0.3716,2477.6,2477.4,4.37385596]
[1725176024886,0.61466,2477.8,2477.4,4.37385596]
[1725176024887,0.3725,2477.8,2477.4,4.37385596]
[1725176027902,0.3725,2477.8,2477.5,0.3718]
[1725176033407,0.3725,2477.8,2477.6,0.38940725]
[1725176033703,0.3725,2477.8,2477.5,0.3718]
[1725176033907,0.3725,2477.8,2477.6,0.38941327]
[1725176034205,0.3725,2477.8,2477.7,0.38941277]
[1725176034399,3.0194642,2477.8,2477.7,0.38941277]
[1725176034600,7.0554642,2477.8,2477.7,0.38941277]
[1725176034907,4.4085,2477.8,2477.7,0.38941277]
[1725176035496,7.0554642,2477.8,2477.7,0.38941277]
[1725176037307,3.0194642,2477.8,2477.7,1.00784151]
[1725176037696,3.0194642,2477.8,2477.6,0.7546]
[1725176037892,3.0194642,2477.8,2477.7,1.00779488]
[1725176039301,3.0194642,2477.8,2477.6,0.7546]
[1725176039600,3.0194642,2477.8,2477.7,2.015515]
[1725176041800,0.7422,2477.9,2477.7,2.257685]
[1725176041801,3.0144642,2477.9,2477.7,2.257685]
[1725176042104,3.0144642,2477.9,2477.8,1.00776431]
[1725176042105,0.3675,2477.9,2477.8,1.00776431]
[1725176042305,3.0063642,2478.0,2477.8,1.37036431]
[1725176042501,3.0063642,2478.0,2477.9,1.00776431]
[1725176042703,7.0415642,2478.0,2477.9,1.00776431]
[1725176043309,4.5273,2478.1,2477.9,2.40991431]
[1725176043310,2.6469642,2478.1,2477.9,2.40991431]
[1725176043608,2.6469642,2478.3,2478.0,1.76906431]
[1725176043803,2.6469642,2478.3,2478.1,1.37036431]
[1725176044005,2.6469642,2478.3,2478.2,0.38937595]
[1725176044803,3.3706642,2478.4,2478.2,1.00740275]
[1725176045098,3.3706642,2478.4,2478.1,1.5226]
[1725176045099,3.3706642,2478.4,2478.3,0.38937595]
[1725176045504,0.7237,2478.4,2478.3,0.38937595]
[1725176048003,0.9658,2478.4,2478.3,0.38937595]
[1725176048209,0.9658,2478.4,2477.8,5.06992182]
[1725176048210,13.03216657,2478.4,2477.8,5.06992182]
[1725176048415,0.24212,2478.2,2477.9,1.00734381]
[1725176048609,0.3599,2478.1,2478.0,0.38921376]
[1725176048808,0.7455,2478.1,2478.0,0.38921376]
[1725176058322,0.7455,2478.1,2477.8,1.16]
[1725176058623,0.7455,2478.1,2477.9,0.38918641]
[1725176058827,0.7455,2478.1,2478.0,0.38918641]
[1725176060520,0.24211,2478.3,2478.0,0.38918641]
[1725176060726,0.24211,2478.3,2478.1,1.095]
[1725176061625,3.9359,2478.4,2478.1,0.3597]
[1725176061929,4.178,2478.4,2478.1,0.3597]
[1725176062228,0.24211,2478.3,2478.1,0.3597]
[1725176063118,0.24211,2478.3,2477.9,1.16]
[1725176063322,0.3759,2478.2,2478.0,0.38916244]
[1725176063521,4.89478499,2478.2,2477.7,3.2078]
[1725176063824,0.24214,2478.0,2477.8,0.38922944]
[1725176064017,0.24214,2478.0,2477.7,3.82597635]
[1725176064018,0.3761,2477.9,2477.7,3.82597635]
[1725176064223,0.3761,2477.9,2477.8,0.38924041]
[1725176065024,0.3761,2477.9,2477.7,3.2078]
[1725176065317,4.88468499,2478.1,2477.8,0.38923386]
[1725176065318,4.76101499,2478.1,2477.8,0.38923386]
[1725176065516,4.87338499,2478.1,2477.9,1.15193386]
[1725176065721,0.3545,2478.1,2477.9,1.9227]
[1725176065917,0.3545,2478.1,2478.0,0.3843]
[1725176066517,6.0968642,2478.4,2478.0,0.77346489]
[1725176066518,6.4504742,2478.4,2478.0,0.77346489]
[1725176066722,0.3545,2478.3,2478.0,0.3843]
[1725176070239,0.3545,2478.3,2478.1,0.3891333]
[1725176070426,0.3545,2478.3,2478.0,0.3843]
[1725176070620,0.3545,2478.3,2478.1,0.38913403]
[1725176070824,0.3545,2478.3,2478.0,0.3843]
[1725176071034,0.3545,2478.3,2478.1,0.38913901]
[1725176071238,0.3545,2478.3,2478.0,0.3843]
[1725176071428,0.3545,2478.3,2478.1,0.38913868]
[1725176071628,0.3545,2478.3,2478.0,0.3843]
[1725176072130,0.3545,2478.3,2478.1,0.3891471]
[1725176072328,0.3545,2478.3,2478.0,0.3843]
[1725176072533,0.3545,2478.3,2478.1,0.3891301]
[1725176072733,0.3545,2478.3,2478.0,0.3843]
[1725176072932,0.3545,2478.3,2478.1,0.38913384]
[1725176073146,0.3545,2478.3,2478.0,0.62644]
[1725176073333,0.3545,2478.3,2478.1,0.38912681]
[1725176073634,0.3545,2478.3,2478.0,0.62644]
[1725176073835,0.3545,2478.3,2478.1,0.3891289]
[1725176074142,0.3545,2478.3,2478.0,0.62644]
[1725176074438,0.3545,2478.3,2478.1,0.38911743]
[1725176074733,0.3545,2478.3,2478.0,0.3843]
[1725176074931,0.3545,2478.3,2478.1,0.38911414]
[1725176075130,0.3545,2478.3,2478.0,0.3843]
[1725176075331,0.3545,2478.3,2478.1,0.38911838]
[1725176075633,0.3545,2478.3,2478.0,0.3843]
[1725176075828,0.3545,2478.3,2478.1,0.38911425]
[1725176076028,0.3545,2478.3,2478.0,0.3843]
[1725176076230,0.3545,2478.3,2478.1,0.389113]
[1725176076433,0.3545,2478.3,2478.2,0.389113]
[1725176078429,0.3545,2478.3,2478.0,0.3843]
[1725176078629,0.3545,2478.3,2478.1,0.38909074]
[1725176078834,0.3545,2478.3,2478.2,0.38909074]
[1725176079747,0.3761,2478.4,2478.2,0.38909074]
[1725176079935,0.3761,2478.4,2478.3,0.74719074]
[1725176080433,2.65100148,2478.5,2478.3,0.74719074]
[1725176080638,2.65100148,2478.5,2478.4,0.38909074]